[Event "*** Titled Tuesday 3|2 Blitz"]
[Site "Chess.com"]
[Date "2016.09.06"]
[Round "4"]
[White "Krutoy123"]
[Black "dusanacns"]
[Result "0-1"]
[WhiteElo "2491"]
[BlackElo "2554"]
[TimeControl "180+2"]
[EndTime "17:44:21 PDT"]
[Termination "dusanacns won on time"]

1. e4 {[%clk 0:02:53.4]} 1... d6 {[%clk 0:03:01.2]} 2. d4 {[%clk 0:02:53.9]}
2... Nf6 {[%clk 0:03:02.8]} 3. Nc3 {[%clk 0:02:55.4]} 3... e5 {[%clk 0:03:04.2]}
4. Nf3 {[%clk 0:02:55.8]} 4... exd4 {[%clk 0:03:05.6]} 5. Nxd4 {[%clk
0:02:56.8]} 5... Be7 {[%clk 0:03:07.2]} 6. g3 {[%clk 0:02:58.1]} 6... Nc6 {[%clk
0:03:07.6]} 7. Bg2 {[%clk 0:02:59.2]} 7... Bg4 {[%clk 0:03:08.4]} 8. f3 {[%clk
0:02:58.4]} 8... Nxd4 {[%clk 0:03:09.4]} 9. Qxd4 {[%clk 0:02:59.4]} 9... Be6
{[%clk 0:03:11.1]} 10. O-O {[%clk 0:03:00.1]} 10... O-O {[%clk 0:03:12.7]} 11.
Be3 {[%clk 0:03:00.8]} 11... c6 {[%clk 0:03:14.1]} 12. Qd2 {[%clk 0:02:56.4]}
12... Qc7 {[%clk 0:03:14.4]} 13. Rad1 {[%clk 0:02:57.1]} 13... Rfd8 {[%clk
0:03:15.5]} 14. Ne2 {[%clk 0:02:55.9]} 14... d5 {[%clk 0:03:13.9]} 15. exd5
{[%clk 0:02:49.2]} 15... Nxd5 {[%clk 0:03:07.9]} 16. Bf2 {[%clk 0:02:36.6]}
16... Bf5 {[%clk 0:02:52.9]} 17. Nd4 {[%clk 0:02:32.6]} 17... Bg6 {[%clk
0:02:53.7]} 18. Qc1 {[%clk 0:02:29.9]} 18... h5 {[%clk 0:01:55.6]} 19. a3 {[%clk
0:02:17.3]} 19... h4 {[%clk 0:01:56]} 20. c4 {[%clk 0:02:18.1]} 20... Nf6 {[%clk
0:01:52.4]} 21. Qc3 {[%clk 0:02:11.1]} 21... hxg3 {[%clk 0:01:47.9]} 22. hxg3
{[%clk 0:02:13]} 22... Bd6 {[%clk 0:01:45.1]} 23. Ne2 {[%clk 0:02:10.6]} 23...
Be5 {[%clk 0:01:43.4]} 24. Qb3 {[%clk 0:02:11]} 24... b6 {[%clk 0:01:32]} 25. f4
{[%clk 0:01:42.9]} 25... Bd6 {[%clk 0:01:30.2]} 0-1

[Event "*** Titled Tuesday 3|2 Blitz"]
[Site "Chess.com"]
[Date "2016.09.06"]
[Round "4"]
[White "wonderfultime"]
[Black "Rsnr"]
[Result "1-0"]
[WhiteElo "2690"]
[BlackElo "2531"]
[TimeControl "180+2"]
[EndTime "17:44:46 PDT"]
[Termination "wonderfultime won by resignation"]

1. d4 {[%clk 0:03:01.9]} 1... d5 {[%clk 0:02:59.1]} 2. c4 {[%clk 0:03:03.2]}
2... c6 {[%clk 0:03:00.7]} 3. Nc3 {[%clk 0:03:04.5]} 3... Nf6 {[%clk 0:03:02.4]}
4. e3 {[%clk 0:03:06]} 4... Bf5 {[%clk 0:03:03.7]} 5. cxd5 {[%clk 0:03:06.7]}
5... cxd5 {[%clk 0:03:05.2]} 6. Qb3 {[%clk 0:03:07.5]} 6... Nc6 {[%clk
0:03:06.9]} 7. Qxb7 {[%clk 0:03:08.5]} 7... Bd7 {[%clk 0:03:08.6]} 8. Qb3 {[%clk
0:03:09.7]} 8... Rb8 {[%clk 0:03:10.3]} 9. Qd1 {[%clk 0:03:10.8]} 9... e5 {[%clk
0:03:12.1]} 10. dxe5 {[%clk 0:03:09.2]} 10... Nxe5 {[%clk 0:03:13.5]} 11. Nge2
{[%clk 0:03:09.1]} 11... Bd6 {[%clk 0:03:07.8]} 12. Nf4 {[%clk 0:03:09.3]} 12...
O-O {[%clk 0:03:02]} 13. Be2 {[%clk 0:03:10.2]} 13... Bc6 {[%clk 0:02:39.5]} 14.
O-O {[%clk 0:03:09.6]} 14... Nc4 {[%clk 0:02:12.2]} 15. b3 {[%clk 0:01:18.5]}
15... Be5 {[%clk 0:02:12.8]} 16. bxc4 {[%clk 0:01:20]} 16... Bxc3 {[%clk
0:02:06.3]} 17. Ba3 {[%clk 0:01:21.6]} 17... Bxa1 {[%clk 0:01:47.2]} 18. Bxf8
{[%clk 0:01:21.6]} 18... Be5 {[%clk 0:01:19.6]} 19. Bc5 {[%clk 0:01:22.4]} 19...
Qa5 {[%clk 0:00:57.8]} 20. Bd4 {[%clk 0:01:20.6]} 20... Bxd4 {[%clk 0:00:59.3]}
21. Qxd4 {[%clk 0:01:22.5]} 21... Qxa2 {[%clk 0:01:00.7]} 22. cxd5 {[%clk
0:01:24.1]} 22... Nxd5 {[%clk 0:00:55.6]} 23. Bc4 {[%clk 0:01:24.4]} 23... Nxf4
{[%clk 0:00:46.9]} 24. Qxf4 {[%clk 0:01:25.5]} 24... Qb2 {[%clk 0:00:43.4]} 25.
Qxf7+ {[%clk 0:01:25.7]} 25... Kh8 {[%clk 0:00:44.9]} 26. Qxa7 {[%clk
0:01:27.1]} 26... Ra8 {[%clk 0:00:40.2]} 27. Qc5 {[%clk 0:01:24]} 27... Bd7
{[%clk 0:00:16]} 28. h3 {[%clk 0:01:22.5]} 28... Rc8 {[%clk 0:00:16.7]} 29. Qe7
{[%clk 0:01:20.9]} 29... Bc6 {[%clk 0:00:08.8]} 30. Bd3 {[%clk 0:01:18.1]} 30...
Re8 {[%clk 0:00:07.5]} 31. Qh4 {[%clk 0:01:19]} 31... Qb7 {[%clk 0:00:08.4]} 1-0

[Event "*** Titled Tuesday 3|2 Blitz"]
[Site "Chess.com"]
[Date "2016.09.06"]
[Round "4"]
[White "ChessFrois"]
[Black "steinitz_attack"]
[Result "1-0"]
[WhiteElo "2030"]
[BlackElo "1785"]
[TimeControl "180+2"]
[EndTime "17:45:11 PDT"]
[Termination "ChessFrois won by resignation"]

1. e4 {[%clk 0:03:02]} 1... Nf6 {[%clk 0:03:00.5]} 2. e5 {[%clk 0:03:02.8]} 2...
Nd5 {[%clk 0:03:01.4]} 3. c4 {[%clk 0:03:03.6]} 3... Nb6 {[%clk 0:03:02.2]} 4.
d4 {[%clk 0:03:05.1]} 4... d6 {[%clk 0:03:03.2]} 5. Nf3 {[%clk 0:03:06.6]} 5...
Bg4 {[%clk 0:02:29.9]} 6. Be2 {[%clk 0:02:50.9]} 6... Nc6 {[%clk 0:02:30.1]} 7.
exd6 {[%clk 0:02:51]} 7... exd6 {[%clk 0:02:29.2]} 8. O-O {[%clk 0:02:47.6]}
8... Be7 {[%clk 0:02:30.1]} 9. b3 {[%clk 0:02:47.5]} 9... O-O {[%clk 0:02:30.7]}
10. Bb2 {[%clk 0:02:45.5]} 10... Bf6 {[%clk 0:02:30.4]} 11. Nbd2 {[%clk
0:02:45.5]} 11... Re8 {[%clk 0:02:12.8]} 12. h3 {[%clk 0:02:46.2]} 12... Bxf3
{[%clk 0:02:08.1]} 13. Nxf3 {[%clk 0:02:45.4]} 13... d5 {[%clk 0:02:07]} 14. c5
{[%clk 0:02:44]} 14... Nd7 {[%clk 0:02:07.4]} 15. Bd3 {[%clk 0:02:43.2]} 15...
b6 {[%clk 0:01:54.3]} 16. Bb5 {[%clk 0:02:21.3]} 16... Ne7 {[%clk 0:01:41.6]}
17. cxb6 {[%clk 0:02:07.7]} 17... axb6 {[%clk 0:01:37]} 18. Bd3 {[%clk
0:02:03.3]} 18... c5 {[%clk 0:01:33.4]} 19. Qc2 {[%clk 0:02:02.4]} 19... g6
{[%clk 0:01:22.2]} 20. dxc5 {[%clk 0:02:03]} 20... Bxb2 {[%clk 0:01:22.5]} 21.
Qxb2 {[%clk 0:02:02.3]} 21... Nxc5 {[%clk 0:01:22.8]} 22. Rad1 {[%clk
0:01:58.9]} 22... Qc7 {[%clk 0:01:20]} 23. Bb1 {[%clk 0:01:58.5]} 23... Red8
{[%clk 0:01:00.7]} 24. Rfe1 {[%clk 0:01:58.2]} 24... Nc6 {[%clk 0:00:58.9]} 25.
Qf6 {[%clk 0:01:28.1]} 25... Rd6 {[%clk 0:00:48.2]} 26. Qh4 {[%clk 0:01:27.5]}
26... Ne6 {[%clk 0:00:45.2]} 27. Ng5 {[%clk 0:01:11.2]} 27... Nxg5 {[%clk
0:00:45.9]} 28. Qxg5 {[%clk 0:01:13.1]} 28... f6 {[%clk 0:00:46.1]} 29. Qg3
{[%clk 0:01:10.7]} 29... Ne5 {[%clk 0:00:39.7]} 30. f4 {[%clk 0:01:07.2]} 30...
Qc5+ {[%clk 0:00:40.6]} 31. Kh1 {[%clk 0:01:04.1]} 31... Nf7 {[%clk 0:00:38.7]}
32. Re7 {[%clk 0:00:58.4]} 32... Rad8 {[%clk 0:00:12.9]} 33. Bxg6 {[%clk
0:00:57.8]} 1-0

[Event "*** Titled Tuesday 3|2 Blitz"]
[Site "Chess.com"]
[Date "2016.09.06"]
[Round "4"]
[White "DanielNaroditsky"]
[Black "MbMaster"]
[Result "1-0"]
[WhiteElo "2723"]
[BlackElo "2321"]
[TimeControl "180+2"]
[EndTime "17:45:13 PDT"]
[Termination "DanielNaroditsky won by resignation"]

1. d4 {[%clk 0:03:02]} 1... Nf6 {[%clk 0:02:58.2]} 2. c4 {[%clk 0:03:02.4]} 2...
g6 {[%clk 0:02:59.8]} 3. Nc3 {[%clk 0:03:02.2]} 3... Bg7 {[%clk 0:03:01.3]} 4.
e4 {[%clk 0:03:03.3]} 4... d6 {[%clk 0:03:02.9]} 5. f3 {[%clk 0:03:03.8]} 5...
O-O {[%clk 0:03:03.8]} 6. Be3 {[%clk 0:03:04.9]} 6... c5 {[%clk 0:03:04.9]} 7.
Nge2 {[%clk 0:03:04.3]} 7... Nc6 {[%clk 0:03:05.5]} 8. Qd2 {[%clk 0:03:05]} 8...
Qa5 {[%clk 0:02:07.4]} 9. d5 {[%clk 0:03:01.6]} 9... Ne5 {[%clk 0:02:02.6]} 10.
Nc1 {[%clk 0:03:02.2]} 10... a6 {[%clk 0:02:03]} 11. Nb3 {[%clk 0:03:01.4]}
11... Qd8 {[%clk 0:02:00.6]} 12. a4 {[%clk 0:02:59.6]} 12... e6 {[%clk
0:01:59.7]} 13. Be2 {[%clk 0:02:59.2]} 13... exd5 {[%clk 0:01:59.9]} 14. cxd5
{[%clk 0:03:01.1]} 14... Rb8 {[%clk 0:01:53.9]} 15. O-O {[%clk 0:02:50]} 15...
b5 {[%clk 0:01:35.1]} 16. axb5 {[%clk 0:02:51.9]} 16... axb5 {[%clk 0:01:36.1]}
17. Bxb5 {[%clk 0:02:52.5]} 17... Bd7 {[%clk 0:01:33.9]} 18. Bxd7 {[%clk
0:02:26.9]} 18... Rxb3 {[%clk 0:01:33.1]} 19. Bb5 {[%clk 0:02:27.5]} 19... Qb6
{[%clk 0:01:31.1]} 20. Ra6 {[%clk 0:02:10.4]} 20... Qb8 {[%clk 0:01:26.6]} 21.
Qe2 {[%clk 0:02:06.2]} 21... c4 {[%clk 0:01:22.4]} 22. Rb6 {[%clk 0:01:57.5]}
22... Qc7 {[%clk 0:01:19]} 23. Ra1 {[%clk 0:01:47.7]} 23... Nd3 {[%clk
0:01:04.1]} 24. Rc6 {[%clk 0:01:48.6]} 24... Qb8 {[%clk 0:00:52.9]} 25. Bxc4
{[%clk 0:01:48.5]} 25... Ne5 {[%clk 0:00:49.7]} 26. Bxb3 {[%clk 0:01:47]} 26...
Nxc6 {[%clk 0:00:50.7]} 27. dxc6 {[%clk 0:01:48.7]} 27... Qxb3 {[%clk
0:00:51.6]} 28. Bd4 {[%clk 0:01:42.7]} 28... Rc8 {[%clk 0:00:50.9]} 29. Qb5
{[%clk 0:01:36.8]} 29... Qe6 {[%clk 0:00:46.1]} 30. Bf2 {[%clk 0:01:22.2]} 30...
Ne8 {[%clk 0:00:42.8]} 31. Nd5 {[%clk 0:01:18.2]} 31... h5 {[%clk 0:00:35.7]}
32. Rc1 {[%clk 0:01:14.7]} 32... Kh7 {[%clk 0:00:30]} 33. c7 {[%clk 0:01:15.3]}
33... Qe5 {[%clk 0:00:28.1]} 34. Qb7 {[%clk 0:01:04.5]} 34... Qxb2 {[%clk
0:00:25.9]} 35. Qxb2 {[%clk 0:01:04.6]} 35... Bxb2 {[%clk 0:00:27.8]} 36. Rb1
{[%clk 0:01:05.4]} 36... Nxc7 {[%clk 0:00:23.2]} 37. Nb6 {[%clk 0:01:05.8]} 1-0

[Event "*** Titled Tuesday 3|2 Blitz"]
[Site "Chess.com"]
[Date "2016.09.06"]
[Round "4"]
[White "SidArun"]
[Black "fpawn"]
[Result "1-0"]
[WhiteElo "2015"]
[BlackElo "2180"]
[TimeControl "180+2"]
[EndTime "17:45:40 PDT"]
[Termination "SidArun won by resignation"]

1. e4 {[%clk 0:03:01.9]} 1... d5 {[%clk 0:02:54.1]} 2. exd5 {[%clk 0:03:02.5]}
2... Qxd5 {[%clk 0:02:56]} 3. Nf3 {[%clk 0:03:04]} 3... Bg4 {[%clk 0:02:55.2]}
4. Be2 {[%clk 0:03:05.3]} 4... c6 {[%clk 0:02:55.5]} 5. Nc3 {[%clk 0:03:06.6]}
5... Qd8 {[%clk 0:02:56.3]} 6. d4 {[%clk 0:03:08.3]} 6... Nf6 {[%clk 0:02:57]}
7. Be3 {[%clk 0:03:09.6]} 7... e6 {[%clk 0:02:58]} 8. h3 {[%clk 0:03:11]} 8...
Bh5 {[%clk 0:02:58.3]} 9. g4 {[%clk 0:03:11.9]} 9... Bg6 {[%clk 0:02:59.4]} 10.
Ne5 {[%clk 0:03:13.1]} 10... Nbd7 {[%clk 0:03:00]} 11. f4 {[%clk 0:03:14.1]}
11... Be7 {[%clk 0:02:55.1]} 12. O-O {[%clk 0:03:11.7]} 12... Nxe5 {[%clk
0:02:13.7]} 13. dxe5 {[%clk 0:03:10.5]} 13... Ne4 {[%clk 0:01:50.6]} 14. f5
{[%clk 0:02:59]} 14... Ng3 {[%clk 0:01:38]} 15. fxg6 {[%clk 0:02:28.5]} 15...
Nxf1 {[%clk 0:01:38.6]} 16. gxf7+ {[%clk 0:02:28.7]} 16... Kxf7 {[%clk
0:01:40.5]} 17. Qxf1+ {[%clk 0:02:29.2]} 17... Ke8 {[%clk 0:01:35.7]} 18. Bd3
{[%clk 0:02:27.6]} 18... Rf8 {[%clk 0:01:32.6]} 19. Qe2 {[%clk 0:02:28.4]} 19...
g6 {[%clk 0:01:32.6]} 20. Rf1 {[%clk 0:02:15.4]} 20... Rxf1+ {[%clk 0:01:30.6]}
21. Qxf1 {[%clk 0:02:14.5]} 21... Qa5 {[%clk 0:01:30.2]} 22. Qf4 {[%clk
0:02:14.3]} 22... Rd8 {[%clk 0:01:24.6]} 23. Bc4 {[%clk 0:01:46.2]} 23... Qb4
{[%clk 0:00:44.4]} 24. a3 {[%clk 0:01:16.9]} 24... Qxb2 {[%clk 0:00:06.3]} 25.
Bxe6 {[%clk 0:01:14.6]} 25... Rb8 {[%clk 0:00:07.3]} 26. Qf7+ {[%clk 0:00:47.3]}
26... Kd8 {[%clk 0:00:08.2]} 27. Bg5 {[%clk 0:00:27.3]} 27... Qxa3 {[%clk
0:00:06.5]} 28. Qf8+ {[%clk 0:00:24.4]} 28... Kc7 {[%clk 0:00:06.7]} 29. Qxe7+
{[%clk 0:00:25.7]} 29... Qxe7 {[%clk 0:00:05.7]} 30. Bxe7 {[%clk 0:00:26.4]}
30... Re8 {[%clk 0:00:06.8]} 31. Bd6+ {[%clk 0:00:27.5]} 31... Kb6 {[%clk
0:00:08.4]} 32. Bd7 {[%clk 0:00:27.2]} 32... Rg8 {[%clk 0:00:08.1]} 33. e6
{[%clk 0:00:28.5]} 1-0

[Event "*** Titled Tuesday 3|2 Blitz"]
[Site "Chess.com"]
[Date "2016.09.06"]
[Round "4"]
[White "Kouzari"]
[Black "E-Shaposhnikov"]
[Result "0-1"]
[WhiteElo "2463"]
[BlackElo "2671"]
[TimeControl "180+2"]
[EndTime "17:45:49 PDT"]
[Termination "E-Shaposhnikov won by resignation"]

1. d4 {[%clk 0:03:02]} 1... Nf6 {[%clk 0:02:58.1]} 2. c4 {[%clk 0:03:03.4]} 2...
e6 {[%clk 0:02:58.1]} 3. Nc3 {[%clk 0:03:04.7]} 3... Bb4 {[%clk 0:02:58.6]} 4.
g3 {[%clk 0:03:06.2]} 4... d6 {[%clk 0:02:56.1]} 5. Bg2 {[%clk 0:03:07.1]} 5...
O-O {[%clk 0:02:57.3]} 6. Nf3 {[%clk 0:03:07.8]} 6... Nbd7 {[%clk 0:02:57]} 7.
O-O {[%clk 0:03:09.2]} 7... Bxc3 {[%clk 0:02:56.7]} 8. bxc3 {[%clk 0:03:10]}
8... Rb8 {[%clk 0:02:58.6]} 9. Bg5 {[%clk 0:03:01.7]} 9... b6 {[%clk 0:02:55]}
10. e4 {[%clk 0:03:00.8]} 10... Bb7 {[%clk 0:02:46.8]} 11. Nd2 {[%clk
0:02:44.8]} 11... e5 {[%clk 0:02:47.7]} 12. f4 {[%clk 0:02:43.6]} 12... h6
{[%clk 0:02:41.7]} 13. Bxf6 {[%clk 0:02:41.1]} 13... Nxf6 {[%clk 0:02:41.5]} 14.
fxe5 {[%clk 0:02:42.1]} 14... dxe5 {[%clk 0:02:37.9]} 15. d5 {[%clk 0:02:40.8]}
15... Qd6 {[%clk 0:02:31.2]} 16. Qe2 {[%clk 0:02:31.4]} 16... c6 {[%clk
0:02:27.8]} 17. Rf2 {[%clk 0:02:18.4]} 17... Rbc8 {[%clk 0:02:24]} 18. Raf1
{[%clk 0:02:17.6]} 18... Nd7 {[%clk 0:02:10.3]} 19. Qh5 {[%clk 0:02:08.1]} 19...
Qe7 {[%clk 0:01:57.8]} 20. Nf3 {[%clk 0:01:55.4]} 20... cxd5 {[%clk 0:01:53.4]}
21. cxd5 {[%clk 0:01:56.4]} 21... Rxc3 {[%clk 0:01:53.9]} 22. Nh4 {[%clk
0:01:57.2]} 22... Qg5 {[%clk 0:01:46.2]} 23. Qe2 {[%clk 0:01:17.1]} 23... Rc1
{[%clk 0:01:44.9]} 24. Nf5 {[%clk 0:01:14.9]} 24... Rxf1+ {[%clk 0:01:42.4]} 25.
Qxf1 {[%clk 0:01:13.3]} 25... Nc5 {[%clk 0:01:33.1]} 26. Nd6 {[%clk 0:01:03.7]}
26... Ba6 {[%clk 0:01:33.8]} 27. Qd1 {[%clk 0:00:45.5]} 27... g6 {[%clk
0:01:15.3]} 28. a4 {[%clk 0:00:32]} 28... Qe3 {[%clk 0:01:09.1]} 29. Nb5 {[%clk
0:00:24]} 29... Bxb5 {[%clk 0:01:08.9]} 30. axb5 {[%clk 0:00:25.9]} 30... Nd3
{[%clk 0:01:10]} 31. Qf3 {[%clk 0:00:21.8]} 31... Qxf2+ {[%clk 0:01:10.4]} 32.
Qxf2 {[%clk 0:00:23]} 32... Nxf2 {[%clk 0:01:12.3]} 33. Kxf2 {[%clk 0:00:24.9]}
33... Rc8 {[%clk 0:01:12.6]} 34. Bh3 {[%clk 0:00:26.3]} 34... Rc2+ {[%clk
0:01:03.1]} 35. Ke3 {[%clk 0:00:27.1]} 35... Kf8 {[%clk 0:01:03.7]} 36. d6
{[%clk 0:00:28.6]} 36... Rxh2 {[%clk 0:01:04.4]} 37. Bd7 {[%clk 0:00:29]} 37...
Rg2 {[%clk 0:01:02.6]} 38. Kd3 {[%clk 0:00:28.6]} 38... h5 {[%clk 0:00:57.3]}
39. Kc4 {[%clk 0:00:29.5]} 39... Rd2 {[%clk 0:00:56.9]} 0-1

[Event "*** Titled Tuesday 3|2 Blitz"]
[Site "Chess.com"]
[Date "2016.09.06"]
[Round "4"]
[White "TrickyTrapChess"]
[Black "Bishops83"]
[Result "0-1"]
[WhiteElo "2128"]
[BlackElo "2260"]
[TimeControl "180+2"]
[EndTime "17:45:49 PDT"]
[Termination "Bishops83 won by resignation"]

1. d4 {[%clk 0:02:59.8]} 1... e6 {[%clk 0:02:55.9]} 2. e4 {[%clk 0:02:48.8]}
2... d5 {[%clk 0:02:56.8]} 3. Nd2 {[%clk 0:02:46.7]} 3... Nf6 {[%clk 0:02:57.2]}
4. e5 {[%clk 0:02:46.7]} 4... Nfd7 {[%clk 0:02:57.9]} 5. Bd3 {[%clk 0:02:48]}
5... c5 {[%clk 0:02:56.9]} 6. c3 {[%clk 0:02:49.4]} 6... Nc6 {[%clk 0:02:55.5]}
7. Ne2 {[%clk 0:02:50.8]} 7... cxd4 {[%clk 0:02:52.8]} 8. cxd4 {[%clk
0:02:52.7]} 8... f6 {[%clk 0:02:52.4]} 9. exf6 {[%clk 0:02:50]} 9... Nxf6 {[%clk
0:02:54.3]} 10. Nf3 {[%clk 0:02:44.4]} 10... Bd6 {[%clk 0:02:55]} 11. O-O {[%clk
0:02:45.4]} 11... Qc7 {[%clk 0:02:54.5]} 12. Ng3 {[%clk 0:02:35.5]} 12... O-O
{[%clk 0:02:45.6]} 13. Re1 {[%clk 0:02:31.7]} 13... e5 {[%clk 0:02:35.5]} 14.
dxe5 {[%clk 0:02:21.3]} 14... Nxe5 {[%clk 0:02:37.4]} 15. Nxe5 {[%clk
0:02:18.6]} 15... Bxe5 {[%clk 0:02:38.8]} 16. Qb3 {[%clk 0:02:03.7]} 16... Be6
{[%clk 0:02:32.9]} 17. Bd2 {[%clk 0:01:18.2]} 17... Ng4 {[%clk 0:02:20.8]} 18.
Rac1 {[%clk 0:01:11]} 18... Qf7 {[%clk 0:02:16.4]} 19. Re2 {[%clk 0:00:54.9]}
19... Rae8 {[%clk 0:01:43]} 20. Rce1 {[%clk 0:00:51]} 20... Qf6 {[%clk
0:01:27.4]} 21. Bc3 {[%clk 0:00:43.6]} 21... d4 {[%clk 0:01:24.8]} 22. h3 {[%clk
0:00:24.1]} 22... Bxb3 {[%clk 0:01:21.8]} 23. Bb4 {[%clk 0:00:21.3]} 23... Bd5
{[%clk 0:01:03.5]} 24. hxg4 {[%clk 0:00:17.1]} 24... Bxg3 {[%clk 0:00:59]} 25.
fxg3 {[%clk 0:00:06.3]} 25... Rxe2 {[%clk 0:00:59.1]} 26. Rxe2 {[%clk 0:00:08]}
26... Rc8 {[%clk 0:00:48.9]} 27. Bd2 {[%clk 0:00:02.7]} 27... Bxa2 {[%clk
0:00:44.1]} 28. g5 {[%clk 0:00:03.7]} 28... Qb6 {[%clk 0:00:41.4]} 29. b3 {[%clk
0:00:04.9]} 29... Bxb3 {[%clk 0:00:37.9]} 30. Bf5 {[%clk 0:00:06.5]} 30... d3+
{[%clk 0:00:34.9]} 31. Rf2 {[%clk 0:00:08.1]} 31... Rc2 {[%clk 0:00:31.4]} 32.
Kf1 {[%clk 0:00:06.2]} 32... Qd4 {[%clk 0:00:31.9]} 33. Bg4 {[%clk 0:00:06.8]}
33... Qxg4 {[%clk 0:00:28.6]} 34. Kg1 {[%clk 0:00:07.1]} 34... Qd1+ {[%clk
0:00:28.8]} 35. Kh2 {[%clk 0:00:07.2]} 35... Rxd2 {[%clk 0:00:29.7]} 36. Rf4
{[%clk 0:00:08.7]} 36... Qe2 {[%clk 0:00:29]} 0-1

[Event "*** Titled Tuesday 3|2 Blitz"]
[Site "Chess.com"]
[Date "2016.09.06"]
[Round "4"]
[White "ZapataCharlesS"]
[Black "jk13"]
[Result "1/2-1/2"]
[WhiteElo "2577"]
[BlackElo "2498"]
[TimeControl "180+2"]
[EndTime "17:46:08 PDT"]
[Termination "Game drawn by repetition"]

1. e4 {[%clk 0:03:01.9]} 1... e5 {[%clk 0:03:01]} 2. Nf3 {[%clk 0:03:02.4]} 2...
Nc6 {[%clk 0:03:02.5]} 3. d4 {[%clk 0:03:03.7]} 3... exd4 {[%clk 0:03:02.3]} 4.
Bc4 {[%clk 0:03:04.1]} 4... d6 {[%clk 0:03:01.3]} 5. Nxd4 {[%clk 0:03:03]} 5...
Nf6 {[%clk 0:03:00.6]} 6. Nxc6 {[%clk 0:03:03.7]} 6... bxc6 {[%clk 0:03:00.5]}
7. e5 {[%clk 0:03:03.3]} 7... Ng4 {[%clk 0:02:31.5]} 8. e6 {[%clk 0:02:59.3]}
8... Nxf2 {[%clk 0:02:06.1]} 9. exf7+ {[%clk 0:02:50.8]} 9... Kd7 {[%clk
0:02:06.8]} 10. Qe2 {[%clk 0:02:15]} 10... d5 {[%clk 0:01:49.3]} 11. Qxf2 {[%clk
0:01:51.2]} 11... dxc4 {[%clk 0:01:50.2]} 12. O-O {[%clk 0:01:51.4]} 12... Qf6
{[%clk 0:01:43.3]} 13. Rd1+ {[%clk 0:01:37.4]} 13... Bd6 {[%clk 0:01:41]} 14.
Qxf6 {[%clk 0:01:38.3]} 14... gxf6 {[%clk 0:01:41.8]} 15. Bh6 {[%clk 0:01:40.2]}
15... Ba6 {[%clk 0:01:30.6]} 16. Nc3 {[%clk 0:01:35.5]} 16... Ke6 {[%clk
0:01:27.4]} 17. Bg7 {[%clk 0:01:10]} 17... Kxf7 {[%clk 0:01:26.3]} 18. Bxh8
{[%clk 0:00:59.6]} 18... Rxh8 {[%clk 0:01:28.2]} 19. Ne4 {[%clk 0:00:55.6]}
19... Be5 {[%clk 0:01:29.4]} 20. c3 {[%clk 0:00:56.3]} 20... Bc8 {[%clk
0:01:20.3]} 21. Rf1 {[%clk 0:00:52.2]} 21... Kg6 {[%clk 0:01:20.3]} 22. Rae1
{[%clk 0:00:50.3]} 22... Bf5 {[%clk 0:01:13.7]} 23. h3 {[%clk 0:00:48.1]} 23...
h5 {[%clk 0:01:13.4]} 24. Rf2 {[%clk 0:00:47.3]} 24... Rd8 {[%clk 0:01:10]} 25.
Rd2 {[%clk 0:00:44.2]} 25... Rd5 {[%clk 0:01:01.8]} 26. Rde2 {[%clk 0:00:39.3]}
26... h4 {[%clk 0:00:59.4]} 27. a3 {[%clk 0:00:40.1]} 27... a5 {[%clk
0:00:59.2]} 28. Nf2 {[%clk 0:00:40.2]} 28... Bg3 {[%clk 0:00:57.2]} 29. Re8
{[%clk 0:00:38]} 29... Rd2 {[%clk 0:00:54.8]} 30. R1e2 {[%clk 0:00:36.1]} 30...
Rd5 {[%clk 0:00:54.3]} 31. a4 {[%clk 0:00:31.7]} 31... Bb1 {[%clk 0:00:46.6]}
32. Rg8+ {[%clk 0:00:31.5]} 32... Kf7 {[%clk 0:00:44.7]} 33. Ra8 {[%clk
0:00:32.2]} 33... Bd3 {[%clk 0:00:43.8]} 34. Ree8 {[%clk 0:00:23.2]} 34... Rf5
{[%clk 0:00:39.3]} 35. Rf8+ {[%clk 0:00:24.1]} 35... Kg7 {[%clk 0:00:33.8]} 36.
Rg8+ {[%clk 0:00:25.4]} 36... Kf7 {[%clk 0:00:34.9]} 37. Raf8+ {[%clk
0:00:22.6]} 37... Ke6 {[%clk 0:00:33.8]} 38. Re8+ {[%clk 0:00:23.5]} 38... Kf7
{[%clk 0:00:32.2]} 39. Nxd3 {[%clk 0:00:21.4]} 39... cxd3 {[%clk 0:00:32.9]} 40.
Rgf8+ {[%clk 0:00:21.6]} 40... Kg7 {[%clk 0:00:31.2]} 41. Rg8+ {[%clk
0:00:23.5]} 41... Kf7 {[%clk 0:00:31.9]} 42. Rgf8+ {[%clk 0:00:22.8]} 42... Kg7
{[%clk 0:00:32.8]} 43. Rg8+ {[%clk 0:00:19.6]} 43... Kf7 {[%clk 0:00:33.9]} 44.
Rgf8+ {[%clk 0:00:21.1]} 44... Kg7 {[%clk 0:00:34.8]} 45. Rg8+ {[%clk
0:00:22.8]} 1/2-1/2